[Event "FIDE WSCC 65 2022"]
[Site "Assisi"]
[Date "2022.11.22"]
[Round "7.1"]
[White "Nunn, John D M"]
[Black "Birnboim, Nathan"]
[Result "1-0"]
[ECO "B30"]
[WhiteElo "2580"]
[BlackElo "2361"]
[Annotator "TA"]
[PlyCount "57"]
[EventDate "2022.11.14"]
[EventType "swiss"]
[EventCountry "ITA"]
[SourceTitle "playchess.com"]
[Source "ChessBase"]
[SourceQuality "1"]
[TimeControl "40/5400+30:1800+30"]

{[%evp 15,57,6,13,23,17,12,29,41,39,18,58,49,51,48,43,53,91,92,77,83,99,90,93,47,71,66,68,43,53,57,52,27,27,0,0,0,0,0,0,0,1284,1266,1204,1139]} 1. e4 {[%emt 0:00:07]} c5 {[%emt 0:00:14]} 2. Nf3 {[%emt 0:00:07]} Nc6 {[%emt 0:00:04]} 3. Bb5 {[%emt 0:00:08]} e6 {[%emt 0:01:13]} 4. O-O {[%emt 0:00:24]} Nge7 {[%emt 0:00:36]} 5. c3 {[%emt 0:00:31]} a6 {[%emt 0:04:19]} 6. Ba4 {[%emt 0:00:09]} b5 {[%emt 0:09:09]} 7. Bc2 {[%emt 0:00:49]} Bb7 {[%emt 0:00:47]} 8. Re1 {[%emt 0:08:02]} d5 {[%emt 0:03:56]} 9. a4 {[%emt 0:02:14] B30: Sicilian: 2...Nc6 3 Bb5, lines without ...g6.} d4 {[%emt 0:01:42]} 10. cxd4 {[%emt 0:01:41] [#]} cxd4 $146 {[%emt 0:01:34] Threatens to win with ...d3.} ({Predecessor:} 10... Nxd4 11. Nxd4 cxd4 12. axb5 axb5 13. Rxa8 Bxa8 14. d3 Nc6 15. Na3 Qb6 16. Qg4 Bxa3 17. Qxg7 Rf8 18. bxa3 Qc5 19. Bh6 Qxa3 20. Rb1 {1-0 (20) Hoolt,S (2254)-Rudolf,S (2218) Playchess.com INT 2012}) 11. axb5 {[%emt 0:02:08] White has an edge.} axb5 {[%emt 0:00:04]} 12. Rxa8 {[%emt 0:00:06]} Bxa8 {[%emt 0:22:23]} 13. Bd3 {[%emt 0:05:06]} Qb6 {[%emt 0:12:55]} 14. Na3 {[%emt 0:01:13]} Ng6 {[%emt 0:01:03]} 15. Bxb5 {[%emt 0:11:26] Hoping for Qa4.} (15. Nxb5 Bc5 $15) 15... Bxa3 {[%emt 0:00:22]} 16. Qa4 {[%emt 0:00:40] Prevents Bb4.} O-O {[%emt 0:01:45]} 17. bxa3 {[%emt 0:00:04]} Nge5 {[%emt 0:07:39]} 18. Nxe5 {[%emt 0:18:27]} Nxe5 {[%emt 0:00:07]} 19. Bf1 {[%emt 0:03:07]} ({Better is} 19. Qb3 $16) 19... Rb8 {[%emt 0:08:45]} 20. d3 {[%emt 0:01:18]} Bc6 {[%emt 0:01:29]} 21. Qc2 {[%emt 0:01:07]} Qa5 {[%emt 0:08:39]} 22. Bd2 {[%emt 0:12:25]} Qxa3 {[%emt 0:00:05]} 23. Bf4 {[%emt 0:01:39]} (23. f4 $5 {[%cal Rf4e5]} Rb2 24. Qc1 $16) 23... Rc8 {[%emt 0:02:38]} 24. Bxe5 {[%emt 0:12:11]} Qa5 {[%emt 0:00:06][%csl LRe1,LRe5]} 25. Bxg7 {[%emt 0:01:02]} Qxe1 {[%emt 0:02:55]} 26. Bh6 {[%emt 0:04:51] White threatens Qc5 and mate.} (26. Bxd4 Bd7 27. Qb2 Rc1) 26... Bd7 $1 {[%emt 0:00:34]} 27. Qb2 {[%emt 0:00:18] Qa3 is the strong threat.} e5 $2 {[%emt 0:00:36][%mdl 8192] [#]} (27... Qc3 $11 28. Qe2 e5) 28. Qb6 $1 $18 {[%emt 0:01:28] Qf6 would kill now.} Be6 {[%emt 0:00:44] [#]} 29. Qb5 $1 {[%emt 0:01:30] Weighted Error Value: White=0.07 (flawless) /Black=0.10 (very precise)} 1-0

[Event "FIDE WSCC 65 2022"]
[Site "Assisi"]
[Date "2022.11.22"]
[Round "7.2"]
[White "Maryasin, Boris"]
[Black "Jansa, Vlastimil"]
[Result "1/2-1/2"]
[ECO "B46"]
[WhiteElo "2258"]
[BlackElo "2390"]
[Annotator "TA"]
[PlyCount "54"]
[EventDate "2022.11.14"]
[EventType "swiss"]
[EventCountry "ITA"]
[SourceTitle "playchess.com"]
[Source "ChessBase"]
[SourceQuality "1"]
[TimeControl "40/5400+30:1800+30"]

{[%evp 21,54,0,0,0,0,0,0,-8,-8,-8,-8,-9,-8,-10,-10,-20,-14,-14,-11,-11,-11,-8,-1,-1,0,-33,0,0,0,0,0,0,0,0,14]} 1. e4 {[%emt 0:00:07]} c5 {[%emt 0:00:09]} 2. Nf3 {[%emt 0:00:22]} e6 {[%emt 0:00:15]} 3. d4 {[%emt 0:00:18]} cxd4 {[%emt 0:00:06]} 4. Nxd4 {[%emt 0:00:05]} Nc6 {[%emt 0:00:34]} 5. Nc3 {[%emt 0:00:28]} a6 {[%emt 0:00:32]} 6. Nxc6 {[%emt 0:01:12]} bxc6 {[%emt 0:00:06]} 7. Bd3 {[%emt 0:00:09]} d5 {[%emt 0:00:16]} 8. O-O {[%emt 0:00:16]} Nf6 {[%emt 0:00:10]} 9. Re1 {[%emt 0:00:33]} Be7 {[%emt 0:00:19]} 10. e5 {[%emt 0:00:34]} Nd7 {[%emt 0:00:08]} 11. Qg4 {[%emt 0:00:17]} Kf8 $1 {[%emt 0:01:27]} 12. Na4 {[%emt 0:01:49] B46: Sicilian: Taimanov: 5 Nc3 a6.} c5 {[%emt 0:12:19]} 13. b3 {[%emt 0:01:44]} Bb7 {[%emt 0:04:09]} 14. c4 {[%emt 0:01:38]} d4 {[%emt 0:02:16]} 15. Bf4 {[%emt 0:12:19]} h5 {[%emt 0:07:02]} 16. Qe2 {[%emt 0:02:08] [#]} Qc7 $146 {[%emt 0:03:13]} ({Predecessor:} 16... g6 17. Rad1 Kg7 18. Be4 Qc7 19. h3 Rab8 20. Nb2 a5 21. Bxb7 Rxb7 22. g3 Qc6 {½-½ (32) Martic,I (2364)-Cvetkovic,S (2351) Belgrade 2015}) 17. Be4 {[%emt 0:05:52]} g6 {[%emt 0:09:09]} 18. Nb2 {[%emt 0:05:15]} a5 {[%emt 0:01:53]} 19. Qd2 {[%emt 0:01:32]} Kg7 {[%emt 0:02:04]} 20. Bxb7 {[%emt 0:01:19]} Qxb7 {[%emt 0:00:20]} 21. Bg5 {[%emt 0:00:07]} Bxg5 {[%emt 0:11:59]} 22. Qxg5 {[%emt 0:01:15]} h4 {[%emt 0:00:30]} 23. h3 {[%emt 0:02:08]} Rae8 {[%emt 0:10:34]} 24. Nd3 {[%emt 0:01:41] The position is equal.} Rh5 {[%emt 0:00:45]} 25. Qd2 {[%emt 0:01:24]} Ra8 {[%emt 0:04:50]} 26. Rab1 {[%emt 0:02:30]} Qc7 {[%emt 0:03:19][%cal Rd7e5]} 27. f4 {[%emt 0:00:39]} Rf5 {[%emt 0:25:36] A balanced but interesting game.  Weighted Error Value: White=0.04 (flawless) /Black=0.03 (flawless)} 1/2-1/2

[Event "FIDE WSCC 65 2022"]
[Site "Assisi"]
[Date "2022.11.22"]
[Round "7.3"]
[White "Fernandez Garcia, Jose Luis"]
[Black "Hebert, Jean"]
[Result "1/2-1/2"]
[ECO "C01"]
[WhiteElo "2358"]
[BlackElo "2333"]
[Annotator "TA"]
[PlyCount "74"]
[EventDate "2022.11.14"]
[EventType "swiss"]
[EventCountry "ITA"]
[SourceTitle "playchess.com"]
[Source "ChessBase"]
[SourceQuality "1"]
[TimeControl "40/5400+30:1800+30"]

{[%evp 15,74,0,0,0,2,6,10,-14,-14,-10,-22,-29,0,0,0,-1,0,0,0,0,-5,-4,0,0,0,0,0,2,0,0,6,0,0,0,0,0,0,0,0,0,0,-14,0,-75,-50,-74,-74,-193,-187,-204,0,0,0,0,0,0,0,0,0,0,0]} 1. e4 {[%emt 0:06:27]} e6 {[%emt 0:05:43][%cal Be7e6,Be6d5][%mdl 32]} 2. Nf3 {[%emt 0:00:30]} d5 {[%emt 0:00:30]} 3. exd5 {[%emt 0:00:30]} exd5 {[%emt 0:00:30]} 4. d4 {[%emt 0:00:30]} Nc6 {[%emt 0:00:30]} 5. Bb5 {[%emt 0:00:30]} Bd6 {[%emt 0:00:30]} 6. O-O {[%emt 0:00:30]} Nge7 {[%emt 0:00:30]} 7. c4 {[%emt 0:00:30]} dxc4 {[%emt 0:00:30]} 8. Bxc4 {[%emt 0:00:30]} O-O {[%emt 0:00:30]} 9. h3 {[%emt 0:00:30] Prevents Bg4. 9.h3 is better than 9.Nc3. C01: French: Exchange Variation.} Bf5 {[%emt 0:00:30]} 10. Nc3 {[%emt 0:00:30]} a6 {[%emt 0:00:30]} 11. d5 {[%emt 0:00:30]} Ne5 {[%emt 0:00:30]} 12. Nxe5 {[%emt 0:00:30]} Bxe5 {[%emt 0:00:30] [#]} 13. Re1 $146 {[%emt 0:00:30]} ({Predecessor:} 13. f4 Bf6 14. g4 Qd6 15. Qe2 b5 16. Bb3 b4 17. Ne4 Bd4+ 18. Nf2 Bd7 19. Rd1 {0-1 (80) Gordon,V (2149)-Romanova,I (2242) Kharkov 2005}) 13... Bd6 {[%emt 0:00:30]} (13... Ng6 $5 {[%cal Rf8e8]}) 14. Qf3 {[%emt 0:00:30][%cal Oe1e7] Rxe7! is the strong threat.} Qd7 {[%emt 0:00:30]} 15. Bf4 {[%emt 0:00:30]} Bxf4 {[%emt 0:00:30]} 16. Qxf4 {[%emt 0:00:30][%cal Oe1e7]} Nc8 {[%emt 0:00:30]} 17. Rad1 {[%emt 0:00:30]} Nd6 {[%emt 0:00:30]} 18. Bd3 {[%emt 0:00:30]} Rfe8 {[%emt 0:00:30]} 19. Bxf5 {[%emt 0:00:30]} Qxf5 {[%emt 0:00:30]} 20. Qxf5 {[%emt 0:00:30]} Nxf5 {[%emt 0:00:30]} 21. Ne4 {[%emt 0:00:30]} Kf8 {[%emt 0:00:30]} 22. g4 {[%emt 0:00:30]} Nd6 {[%emt 0:00:30]} 23. Nxd6 {[%emt 0:00:30]} cxd6 {[%emt 0:00:30]} 24. Rxe8+ {[%emt 0:00:30]} Kxe8 $11 {[%emt 0:00:30][%mdl 4096] Endgame KR-KR} 25. Rc1 {[%emt 0:00:30]} Kd7 {[%emt 0:00:30] Prevents Rc7+.} 26. Rc3 {[%emt 0:00:30]} Re8 {[%emt 0:00:30]} 27. Rb3 {[%emt 0:00:30]} Kc7 {[%emt 0:00:30]} 28. Rc3+ {[%emt 0:00:30]} Kb8 {[%emt 0:00:30]} 29. Kg2 {[%emt 0:00:30]} (29. Re3 $11 Re5 30. Kg2) 29... Re2 $17 {[%emt 0:00:30]} 30. Re3 {[%emt 0:00:30]} Rxb2 {[%emt 0:00:30]} 31. Re7 {[%emt 0:00:30]} (31. Re8+ $17 {was necessary.} Ka7 32. a3) 31... Rxa2 {[%emt 0:00:30]} 32. Rxf7 {[%emt 0:00:30]} b5 $2 {[%emt 0:00:30]} ({Better is} 32... Rc2 $19 33. Rxg7 Rc7 34. Rxc7 Kxc7) 33. Rxg7 $11 {[%emt 0:00:30] The position is equal.} b4 {[%emt 0:00:30]} 34. Rxh7 {[%emt 0:00:30] [#] Black must now prevent g5.} b3 {[%emt 0:00:30] aiming for ...Rc2.} 35. Rh8+ {[%emt 0:00:30]} Kc7 {[%emt 0:00:30]} 36. Rh7+ {[%emt 0:00:30]} Kb6 {[%emt 0:00:30]} 37. Rh8 {[%emt 0:00:30] Hoping for Rb8+.} Kc7 {[%emt 0:00:30] Against Rb8.   Weighted Error Value: White=0.10 (very precise) /Black=0.10 (very precise)} 1/2-1/2

[Event "FIDE WSCC 65 2022"]
[Site "Assisi"]
[Date "2022.11.22"]
[Round "7.4"]
[White "Mojzis, Jaroslav"]
[Black "Kristiansen, Jens"]
[Result "0-1"]
[ECO "A87"]
[WhiteElo "2094"]
[BlackElo "2353"]
[Annotator "TA"]
[PlyCount "100"]
[EventDate "2022.11.14"]
[EventType "swiss"]
[EventCountry "ITA"]
[SourceTitle "playchess.com"]
[Source "ChessBase"]
[SourceQuality "1"]
[TimeControl "40/5400+30:1800+30"]

{[%evp 14,100,47,52,61,48,62,60,60,33,16,8,20,-45,-31,-74,-67,-80,-39,-88,-81,-108,-108,-106,-108,-108,-112,-99,-110,-99,-91,-66,-38,-105,-107,-103,-107,-119,-112,-127,-128,-126,-93,-90,-62,-62,-36,-112,-90,-91,-91,-97,-100,-90,-90,-104,-105,-296,-278,-488,-464,-466,-451,-693,-642,-585,-624,-1206,-695,-12830,-2639,-12837,-12838,-12838,-12836,-12835,-12836,-12837,-12838,-12842,-12843,-12842,-12843,-12844,-12841,-12844,-12844,-12845,-12846]} 1. Nf3 {[%emt 0:00:08]} g6 {[%emt 0:00:24]} 2. g3 {[%emt 0:00:15]} Bg7 {[%emt 0:00:19]} 3. d4 {[%emt 0:00:13]} f5 {[%emt 0:00:12]} 4. Bg2 {[%emt 0:00:26]} Nf6 {[%emt 0:00:14]} 5. O-O {[%emt 0:00:24]} O-O {[%emt 0:00:06]} 6. c4 {[%emt 0:00:12]} d6 {[%emt 0:00:13]} 7. Nc3 {[%emt 0:00:16]} e6 {[%emt 0:00:19] 7...c6 is a critical line.} 8. Re1 {[%emt 0:07:14]} Ne4 {[%emt 0:03:21] A87: Dutch Defence: Leningrad System: 5 Nf3.} 9. Qc2 {[%emt 0:00:52]} Nxc3 {[%emt 0:00:47]} 10. bxc3 {[%emt 0:00:18]} e5 {[%emt 0:02:39] White is slightly better.} 11. dxe5 {[%emt 0:06:22]} dxe5 {[%emt 0:00:10]} 12. Ba3 {[%emt 0:12:01]} Re8 {[%emt 0:04:21]} 13. Rad1 {[%emt 0:02:01]} (13. e4 $1 $11) 13... Qf6 $1 $15 {[%emt 0:00:34] [#]} 14. e3 $146 {[%emt 0:04:38]} ({Predecessor:} 14. Qa4 Nc6 15. Rb1 Rd8 16. h4 h6 17. Red1 Rxd1+ 18. Rxd1 Be6 19. Qb5 Rb8 20. Bc5 {½-½ (78) Mamedjarova,T (2264)-Lach,A (2198) Warsaw 2021}) 14... Nc6 {[%emt 0:01:12]} 15. c5 {[%emt 0:04:48]} Be6 {[%emt 0:01:39]} 16. c4 {[%emt 0:00:34]} (16. e4 $15 {deserves consideration.}) 16... Rad8 $17 {[%emt 0:01:31]} 17. Rxd8 {[%emt 0:06:52]} Rxd8 {[%emt 0:00:11]} ({Much weaker is} 17... Nxd8 $6 18. Bb2 $11) 18. Rb1 {[%emt 0:00:39]} e4 {[%emt 0:04:53]} 19. Bb2 {[%emt 0:04:41]} Qe7 {[%emt 0:00:16] aiming for ...Bxb2.} 20. Nd2 {[%emt 0:08:22]} Nb4 {[%emt 0:05:25]} 21. Qb3 {[%emt 0:06:29] Strongly threatening Bxg7.} Nd3 {[%emt 0:06:18] Black is much more active.} ({Reject} 21... Rxd2 $6 22. Bxg7 Qxg7 23. Qxb4 Rxa2 24. Qxb7 $11) 22. Bxg7 {[%emt 0:00:20]} Nxc5 {[%emt 0:03:54][%mdl 64] [#] Discovered Attack} 23. Qb4 {[%emt 0:00:16]} (23. Qa3 $1 $15 Kxg7 24. Nb3) 23... Kxg7 {[%emt 0:01:58]} 24. Nb3 {[%emt 0:00:37]} b6 {[%emt 0:01:06]} 25. Nxc5 {[%emt 0:00:57]} Qxc5 {[%emt 0:00:07]} ({Not} 25... bxc5 26. Qa3 $15) 26. Qxc5 {[%emt 0:01:20]} bxc5 {[%emt 0:00:07][%mdl 4096] Endgame KRB-KRB} 27. Bf1 {[%emt 0:00:17]} Kf6 {[%emt 0:00:23]} 28. Rb7 {[%emt 0:00:27][%csl LRa7,LRc7]} Rd1 {[%emt 0:06:06]} 29. Kg2 {[%emt 0:00:27]} a5 {[%emt 0:00:34]} 30. Ra7 {[%emt 0:10:51]} ({White should try} 30. Rxc7 $15 Ra1 31. Rxc5) 30... Rc1 {[%emt 0:02:22]} 31. Rxa5 {[%emt 0:00:38]} Bxc4 {[%emt 0:00:15]} 32. Bxc4 {[%emt 0:00:07]} Rxc4 {[%emt 0:00:05] KR-KR} 33. Ra7 {[%emt 0:00:35]} c6 {[%emt 0:04:27] Hoping for ...Ke6.} 34. Rxh7 {[%emt 0:08:55]} Ra4 {[%emt 0:00:21]} 35. Rc7 $2 {[%emt 0:00:15] [#] Loses the game.} (35. h4 $17 {is the only way for White.}) 35... Ra6 $1 $19 {[%emt 0:00:16]} 36. a4 $2 {[%emt 0:04:24]} (36. Rd7 Ke6 37. Rd2) 36... Ke5 {[%emt 0:00:48] Black is clearly winning.} 37. Kf1 {[%emt 0:06:55]} c4 {[%emt 0:02:09][%cal Bc5c4,Bc4c3][%mdl 32]} 38. Ke2 {[%emt 0:01:09]} (38. Rd7 $142 Rxa4 39. Rd4) 38... Kd5 {[%emt 0:01:50]} 39. Rd7+ {[%emt 0:01:37]} Kc5 {[%emt 0:00:18]} 40. Rg7 {[%emt 0:00:14]} Rxa4 {[%emt 0:02:03]} 41. Rxg6 {[%emt 0:30:17]} Ra2+ {[%emt 0:30:14]} 42. Ke1 {[%emt 0:00:00]} c3 {[%emt 0:00:00] ( -> ...Ra1+)} 43. Kd1 {[%emt 0:00:00]} Rd2+ {[%emt 0:00:00]} 44. Kc1 {[%emt 0:00:00]} Rxf2 {[%emt 0:00:00]} 45. h4 {[%emt 0:00:00]} Kc4 {[%emt 0:00:00]} 46. Rxc6+ {[%emt 0:00:00]} Kd3 {[%emt 0:00:00][%cal Rf2f1]} 47. Rd6+ {[%emt 0:00:00]} Kxe3 {[%emt 0:00:00]} 48. Rc6 {[%emt 0:00:00]} Kd4 {[%emt 0:00:00]} 49. h5 {[%emt 0:00:00]} e3 {[%emt 0:00:00]} 50. Kd1 {[%emt 0:00:00]} Rd2+ {[%emt 0:00:00] Weighted Error Value: White=0.63/Black=0.15 (very precise)} 0-1

[Event "FIDE WSCC 65 2022"]
[Site "Assisi"]
[Date "2022.11.22"]
[Round "7.5"]
[White "Werner, Clemens"]
[Black "Vaisser, Anatoly"]
[Result "1/2-1/2"]
[ECO "B21"]
[WhiteElo "2236"]
[BlackElo "2463"]
[Annotator "TA"]
[PlyCount "99"]
[EventDate "2022.11.14"]
[EventType "swiss"]
[EventCountry "ITA"]
[SourceTitle "playchess.com"]
[Source "ChessBase"]
[SourceQuality "1"]
[TimeControl "40/5400+30:1800+30"]

{[%evp 9,99,-8,9,4,3,0,11,1,8,4,47,23,40,30,26,39,60,60,65,61,87,64,76,86,82,79,72,64,59,61,81,65,76,16,14,0,6,14,27,27,18,0,0,0,0,-17,-18,-17,-24,-29,0,0,0,0,0,0,0,0,0,0,0,0,0,0,0,0,0,0,0,0,0,-3,0,0,0,0,0,0,0,0,0,0,0,-8,-8,-8,-8,-8,-8,-13,0,0]} 1. e4 {[%emt 0:00:12]} c5 {[%emt 0:00:08]} 2. Be2 {[%emt 0:00:29]} Nc6 {[%emt 0:01:37]} 3. f4 {[%emt 0:01:15]} e6 {[%emt 0:04:10]} 4. Nf3 {[%emt 0:00:20]} d5 {[%emt 0:00:16]} 5. d3 {[%emt 0:00:46]} g6 {[%emt 0:04:05]} 6. O-O {[%emt 0:00:27] B21: Sicilian: 2 f4 and Morra Gambit.} Bg7 {[%emt 0:00:14]} 7. c3 {[%emt 0:00:33]} Nge7 {[%emt 0:04:39]} 8. Na3 {[%emt 0:01:05] 8.Be3 deserves study.} O-O {[%emt 0:06:25]} 9. Qe1 {[%emt 0:00:53]} a6 {[%emt 0:10:23]} 10. Nc2 {[%emt 0:01:03]} (10. Qf2 $5 {[%cal Rf2c5]}) 10... b5 {[%emt 0:04:07]} 11. e5 {[%emt 0:13:49]} f6 {[%emt 0:06:10][%cal Rf6e5] [#]} 12. d4 $146 {[%emt 0:00:44]} ({Predecessor:} 12. exf6 Bxf6 13. Ne3 e5 14. fxe5 Nxe5 15. Nxe5 Bxe5 16. Ng4 Rxf1+ 17. Qxf1 Bxg4 18. Bxg4 Qd6 19. g3 Rf8 20. Qg2 a5 21. Bh6 Bg7 22. Bf4 Be5 23. Bh6 Bg7 {½-½ (23) Al Huwar,J (2356)-Adnan,A (2142) Abu Dhabi 2000}) 12... cxd4 {[%emt 0:02:25]} 13. cxd4 {[%emt 0:03:19]} ({Don't play} 13. exf6 Bxf6 14. Nfxd4 Bxd4+ 15. Nxd4 Nxd4 16. cxd4 Nf5 $11) 13... Bd7 {[%emt 0:04:27]} 14. Be3 {[%emt 0:05:12]} Rc8 {[%emt 0:01:17]} 15. Rc1 {[%emt 0:00:58]} Qa5 {[%emt 0:10:22]} 16. Qxa5 {[%emt 0:05:46]} Nxa5 {[%emt 0:00:03]} 17. b3 {[%emt 0:01:20] Against Nc4} Nac6 {[%emt 0:04:43] Inhibits Nb4.} 18. exf6 {[%emt 0:14:32]} Bxf6 {[%emt 0:02:06]} 19. g4 {[%emt 0:00:59] Inhibits Nf5.} Rfd8 {[%emt 0:02:27]} 20. Rfd1 {[%emt 0:02:01]} Bg7 {[%emt 0:06:09]} 21. a3 {[%emt 0:08:22]} ({Better is} 21. Kf2 $16) 21... Na5 $11 {[%emt 0:00:46]} 22. Na1 {[%emt 0:00:19]} Bf8 {[%emt 0:00:30]} 23. Rxc8 {[%emt 0:03:48]} Nxc8 {[%emt 0:02:17][%cal Be7c8,Bc8d6,Bd6c4][%mdl 32]} 24. Bd2 {[%emt 0:00:30]} Nc6 {[%emt 0:02:49]} 25. b4 {[%emt 0:01:43]} Nd6 {[%emt 0:00:47]} 26. Nb3 {[%emt 0:00:33]} Nc4 {[%emt 0:00:38]} 27. Bc1 {[%emt 0:00:49]} a5 {[%emt 0:00:38]} 28. Nxa5 {[%emt 0:02:54]} N6xa5 {[%emt 0:00:34]} 29. bxa5 {[%emt 0:00:08]} Ra8 {[%emt 0:01:26]} 30. Ne5 {[%emt 0:08:53] The position is equal.} Nxe5 {[%emt 0:02:22]} 31. fxe5 {[%emt 0:03:51]} Rxa5 {[%emt 0:00:10]} 32. Rd3 {[%emt 0:00:44]} Ra4 {[%emt 0:02:14]} 33. Bb2 {[%emt 0:00:43]} b4 {[%emt 0:01:16][%cal Rb4a3]} 34. Bd1 $1 {[%emt 0:02:45]} Ra7 {[%emt 0:03:51]} ({Much less strong is} 34... bxa3 35. Bxa4 axb2 36. Bc2 $16) 35. axb4 {[%emt 0:00:31]} Bxb4 {[%emt 0:00:42]} 36. Rb3 {[%emt 0:00:57]} Bd2 {[%emt 0:00:17]} 37. Kf2 {[%emt 0:02:18]} Kg7 {[%emt 0:01:49]} 38. h3 {[%emt 0:01:48]} Kh6 {[%emt 0:02:48]} 39. Rd3 {[%emt 0:06:45]} Bf4 {[%emt 0:03:16]} 40. Kf3 {[%emt 0:03:35]} g5 {[%emt 0:02:37]} 41. Ra3 {[%emt 0:31:14] Against Ra2} Rb7 {[%emt 0:30:26]} 42. Rb3 {[%emt 0:00:07]} Rc7 {[%emt 0:00:15] [#] Hoping for ...Ba4.} 43. Rc3 {[%emt 0:00:10]} Rc4 {[%emt 0:00:50]} 44. Be2 {[%emt 0:00:00]} Rxd4 {[%emt 0:00:00]} 45. Rc7 {[%emt 0:00:00][%csl LRd4,LRd7]} Rb4 {[%emt 0:00:00]} 46. Bc3 {[%emt 0:00:00]} Re4 {[%emt 0:00:00]} 47. Rxd7 {[%emt 0:00:00]} Re3+ {[%emt 0:00:00]} 48. Kf2 {[%emt 0:00:00]} Rxc3 {[%emt 0:00:00]} 49. Re7 {[%emt 0:00:00]} Bg3+ {[%emt 0:00:00]} 50. Kg2 {[%emt 0:00:00] Weighted Error Value: White=0.06 (flawless) /Black=0.06 (flawless)} 1/2-1/2

[Event "FIDE WSCC 65 2022"]
[Site "Assisi"]
[Date "2022.11.22"]
[Round "7.6"]
[White "Knaak, Rainer"]
[Black "Shnaider, David"]
[Result "1-0"]
[ECO "A44"]
[WhiteElo "2457"]
[BlackElo "2225"]
[Annotator "TA"]
[PlyCount "87"]
[EventDate "2022.11.14"]
[EventType "swiss"]
[EventCountry "ITA"]
[SourceTitle "playchess.com"]
[Source "ChessBase"]
[SourceQuality "1"]
[TimeControl "40/5400+30:1800+30"]

{[%evp 9,87,91,85,84,85,79,86,26,108,111,114,104,109,110,112,104,113,120,127,127,202,210,194,180,174,204,229,239,224,198,218,200,277,279,261,257,262,265,329,289,375,373,353,369,371,216,166,172,447,439,501,462,577,581,687,668,655,572,1477,1455,5086,5002,1736,1105,1451,1451,2327,1286,1206,883,882,875,1526,1525,1262,1145,29994,29995,29995,29996]} 1. d4 {[%emt 0:00:05]} c5 {[%emt 0:00:04]} 2. d5 {[%emt 0:00:14]} e5 {[%emt 0:00:05]} 3. e4 {[%emt 0:00:20]} d6 {[%emt 0:00:05]} 4. Nc3 {[%emt 0:00:19]} a6 {[%emt 0:00:12]} 5. a4 {[%emt 0:00:33]} Be7 {[%emt 0:00:06]} 6. Bd3 {[%emt 0:06:29] A44: Semi-Benoni.} Bg5 {[%emt 0:00:22] [#]} 7. Bxg5 $146 {[%emt 0:00:35]} ({Predecessor:} 7. Nf3 Bxc1 8. Qxc1 Ne7 9. O-O O-O 10. h3 h6 11. a5 Ng6 12. Kh2 Nf4 13. Ne2 Nxe2 14. Bxe2 {0-1 (52) Melikhov,E (2292)-Pinheiro,I (2320) Chess.com INT 2022}) 7... Qxg5 {[%emt 0:00:08]} 8. Nf3 {[%emt 0:00:13]} (8. Qf3 $16) 8... Qe7 {[%emt 0:06:31]} (8... Qxg2 $11 {remains equal.} 9. Rg1 Qh3) 9. Nd2 $16 {[%emt 0:00:27] Black is now going downhill.} Nf6 {[%emt 0:00:14]} 10. Nc4 {[%emt 0:01:31]} Nbd7 {[%emt 0:00:06] Inhibits Nb6.} 11. a5 {[%emt 0:00:11]} O-O {[%emt 0:00:06]} 12. O-O {[%emt 0:00:23]} g6 {[%emt 0:00:52]} 13. Qd2 {[%emt 0:08:49]} Nh5 {[%emt 0:02:00]} 14. g3 {[%emt 0:00:21] White is much more active. The black rooks are badly placed.} f5 {[%emt 0:12:02]} (14... Ndf6 $16 15. f3 Bh3) 15. exf5 $18 {[%emt 0:11:00]} gxf5 {[%emt 0:00:04]} 16. Qh6 {[%emt 0:00:20][%csl LRd6,LRh5]} Ndf6 {[%emt 0:00:28]} 17. Nb6 {[%emt 0:00:27]} Bd7 {[%emt 0:00:26]} 18. Nxa8 {[%emt 0:00:41]} Rxa8 {[%emt 0:00:06]} 19. Be2 {[%emt 0:10:26]} Ng7 {[%emt 0:01:21]} 20. f4 {[%emt 0:01:32]} Kh8 {[%emt 0:00:58]} 21. fxe5 {[%emt 0:06:48]} dxe5 {[%emt 0:00:19]} 22. Rad1 {[%emt 0:00:21]} Qd6 {[%emt 0:05:33]} 23. g4 {[%emt 0:13:41][%cal Bg3g4,Bg4g5][%mdl 32]} Rg8 {[%emt 0:02:04]} 24. Kh1 {[%emt 0:01:13]} f4 {[%emt 0:01:03]} 25. Bd3 {[%emt 0:07:40][%cal Od3h7] [#] Threatens to win with Bxh7!} ({Resist} 25. g5 Nfe8 26. Ne4 Qxh6 27. gxh6 Nf5 28. Nxc5 Bc8 $18) 25... Nge8 {[%emt 0:05:23]} 26. g5 {[%emt 0:02:48]} c4 {[%emt 0:06:54]} 27. Be4 {[%emt 0:17:05]} ({Not} 27. gxf6 cxd3 28. Rg1 (28. cxd3 Rg6 $11) 28... Rxg1+ 29. Rxg1 Qxf6 30. Qxf6+ Nxf6 $18) (27. Bxc4 Ng4 28. Qxd6 Nxd6 $16) (27. Rg1 $142 cxd3 28. gxf6 Rxg1+ 29. Rxg1 Qxf6 30. Qxf6+ Nxf6 31. cxd3) 27... Nxe4 {[%emt 0:04:21]} 28. Nxe4 $40 {[%emt 0:00:04][%mdl 128] Black is in trouble. Chess con chili.} Qxh6 {[%emt 0:02:27]} (28... Qe7 {is a better defense.} 29. Rde1 Rg6) 29. gxh6 {[%emt 0:00:04]} Rg6 {[%emt 0:00:38]} 30. Rg1 {[%emt 0:02:01]} Rxh6 {[%emt 0:11:02]} 31. Rg5 {[%emt 0:00:09] Against Bf5} Ng7 {[%emt 0:00:09]} 32. Rxe5 {[%emt 0:01:06]} Nf5 {[%emt 0:00:06]} 33. Rg1 {[%emt 0:02:35] [#] aiming for Nc5.} Nh4 {[%emt 0:06:00] Hoping for ...Nf3.} 34. Re7 {[%emt 0:03:35]} Ba4 {[%emt 0:01:14]} 35. Rf7 {[%emt 0:01:38][%cal Rf7f8]} Ng6 {[%emt 0:00:12] Against Rf8+} 36. d6 {[%emt 0:00:25] And now d7 would win.} Bc6 {[%emt 0:01:52]} 37. d7 {[%emt 0:00:27]} Bxe4+ {[%emt 0:00:14]} 38. Rg2 {[%emt 0:00:01]} Kg8 {[%emt 0:00:55]} 39. Rf6 {[%emt 0:01:39]} Bxg2+ {[%emt 0:02:15]} 40. Kg1 {[%emt 0:01:18]} Bc6 {[%emt 0:00:50]} 41. d8=Q+ {[%emt 0:30:17]} Kg7 {[%emt 0:30:02]} 42. Qd4 {[%emt 0:00:00][%csl LRc4,LRc6,LRf4] White wants to mate with Rxc6+.} Kg8 {[%emt 0:00:00]} 43. Qxc4+ {[%emt 0:00:00]} Kg7 {[%emt 0:00:00]} 44. Rf7+ {[%emt 0:00:00] Weighted Error Value: White=0.22 (precise) /Black=0.63} 1-0